Cogmind - Beta 17 @@@ ROGUE MODE // 2026.07.06 @ 21:00:45 Player: beans Result: Destroyed by Y-45 Defender with Beam Rifle Performance ------------- Evolutions (0) 0 Regions Visited (4) 800 Robots Destroyed (12) 60 Value Destroyed (253) 253 Prototype IDs (24) 480 Alien Tech Used (0) 0 Bonus (307) 307 TOTAL SCORE: 1900 Bonus ------- Follower Combat Kills 7 Aligned with FarCom 300 Cogmind --------- Core Integrity 0/250 Matter 300/300 Energy 95/100 System Corruption 0% Temperature Cool (9) Movement Core (100) Ox1 Location -9/Mines Parts ------- > --- POWER (1) -------- (None) > --- PROPULSION (2) --- (None) > --- UTILITY (2) ------ Improved Heat Sink > --- WEAPON (2) ------- Light Assault Rifle Rocket Launcher > --- INVENTORY (5) ---- 0b10 Alert Chip Decoy Drone Bay (16/16) Peak State ------------ > --- POWER ------------ Ion Engine > --- PROPULSION ------- (None) > --- UTILITY ---------- Decoy Drone Bay > --- WEAPON ----------- Small Laser Particle Gun > --- INVENTORY -------- Improved Heat Sink Light Assault Rifle Rocket Launcher [Rating: 18] Favorites ----------- Power Ion Engine Engine Ion Engine Propulsion Light Treads Treads Light Treads Utility Improved Heat Sink Device Improved Heat Sink Storage Compact Matter Pod Weapon Particle Gun Energy Gun Particle Gun Ballistic Gun Assault Rifle Launcher Rocket Launcher Build | -11 -10 -10 -10 -9 ------- Run | Yrd Mat Min Exi Min Slots Evolved . | . . . . . Power . | . . . . . Propulsion . | . . . . . Utility . | . . . . . Weapon . | . . . . . Parts Attached 12 | 4 1 6 1 . Power 1 | 1 . . . . Engine 1 | 1 . . . . Core . | . . . . . Reactor . | . . . . . Propulsion 2 | 2 . . . . Treads 2 | 2 . . . . Leg . | . . . . . Wheel . | . . . . . Hover . | . . . . . Flight . | . . . . . Utility 4 | . 1 3 . . Device 2 | . . 2 . . Storage 2 | . 1 1 . . Processor . | . . . . . Hackware . | . . . . . Protection . | . . . . . Artifact . | . . . . . Weapon 5 | 1 . 3 1 . Energy Gun 2 | . . 2 . . Energy Cannon . | . . . . . Ballistic Gun 2 | 1 . 1 . . Ballistic Cannon . | . . . . . Launcher 1 | . . . 1 . Special Weapon . | . . . . . Impact Weapon . | . . . . . Slashing Weapon . | . . . . . Piercing Weapon . | . . . . . Special Melee Weapon . | . . . . . Unidentified Prototypes 1 | . . 1 . . Parts Lost 7 | . . 3 . 4 Power 1 | . . . . 1 Propulsion 2 | . . 2 . . Utility 1 | . . . . 1 Weapon 3 | . . 1 . 2 Highest Loss Streak 4 | . . 3 . 4 To Critical Strikes . | . . . . . Average Backups 2 | . . 1 4 4 Power . | . . . . . Propulsion . | . . . . . Utility . | . . . 1 2 Weapon 1 | . . . 2 2 Tool/Special . | . . . . . Unused Backups 4 | 2 . . 1 1 Power 1 | . . . 1 . Propulsion 2 | 2 . . . . Utility 1 | . . . . 1 Weapon . | . . . . . Tool/Special . | . . . . . Average Slot Usage (%) 68 | . 65 67 71 70 Engine 13 | . 14 14 14 13 Treads 8 | . 28 13 . . Device 8 | . . 4 14 14 Storage 11 | . 8 9 14 14 Energy Gun 18 | . . 14 25 23 Ballistic Gun 6 | . 14 10 . . Launcher 1 | . . . 2 3 Peak Build Rating 18 | 4 5 18 13 13 Average Rating 8 | 3 4 6 11 11 On Entrance 6 | . 4 5 11 13 Avg Prop Armor Cover (%) . | . . . . . Naked Turns . | . . . . . Heaviest Build 14 | 7 12 14 14 14 Greatest Support 40 | 40 40 40 3 3 Greatest Overweight (x) 4 | . . 4 4 4 Average Overweight (x) 2 | . . 1 3 3 Largest Inventory Capacity 8 | 5 8 8 5 5 Average Capacity 6 | 5 6 6 5 5 Most Carried 5 | 5 1 5 5 5 Average Carried 3 | . . 2 4 4 Final Capacity 8 | 5 8 5 5 5 Final Carried 5 | . . 5 5 3 Class Distribution -------------------- 100% | Mutant Dominant Class ---------------- Mutant | -10/Materials Mutant | -10/Mines Mutant | -10/Exiles Mutant | -9/Mines Resources | -11 -10 -10 -10 -9 ----------- Run | Yrd Mat Min Exi Min Matter Collected 419 | 164 . 241 . 14 Remotely . | . . . . . Salvage Created 313 | . . 234 12 67 Parts 24 | . . 20 . 4 Haulers Intercepted . | . . . . . Recyclers Shooed . | . . . . . Parts Field Recycled . | . . . . . Retrieved Matter . | . . . . . Parts Self-Destructed . | . . . . . Prevented . | . . . . . Parts Restored . | . . . . . Kills | -11 -10 -10 -10 -9 ------- Run | Yrd Mat Min Exi Min Combat Hostiles Destroyed 23 | . . 13 7 3 Guns 15 | . . 13 . 2 AOE 8 | . . . 7 1 Classes Destroyed 4 | . . 3 . 1 Swarmer 8 | . . 6 . 2 Grunt 3 | . . 3 . . Sentry 1 | . . . . 1 Assembled 11 | . . 4 7 . Best Kill Streak 7 | . . 3 7 2 Combat Bots Only 7 | . . 3 7 2 Max Kills in Single Turn 3 | . . 1 3 1 Gunslinging . | . . . . . Exploded 3 | . . . 3 1 Melee . | . . . . . Uniques/NPCs Destroyed . | . . . . . Combat | -11 -10 -10 -10 -9 -------- Run | Yrd Mat Min Exi Min Hostile Shots Fired 101 | . . 80 3 18 Missed 24 | . . 18 1 5 Hits 77 | . . 62 2 13 Projectile 77 | . . 62 2 13 Critical Strikes 2 | . . 2 . . Damage Taken 974 | . . 748 22 204 Core 262 | . . 181 . 81 Absorbed by Shields . | . . . . . Core Remaining (%) 100 | 100 . . . . Volleys Fired 62 | 1 . 48 6 7 Largest 2 | 1 . 2 1 2 Hottest 105 | 20 . 105 33 105 Shots Fired 89 | 1 . 70 6 12 Gun 82 | 1 . 70 . 11 Cannon . | . . . . . Launcher 7 | . . . 6 1 Special . | . . . . . Kinetic 53 | 1 . 51 . 1 Thermal 29 | . . 19 . 10 Explosive 7 | . . . 6 1 Electromagnetic . | . . . . . Robot Hit Streak 8 | . . 8 4 8 Robot Miss Streak 3 | 1 . 3 2 2 Penetration Max . | . . . . . Secondary Targets 1 | . . 1 . . Max Gunslinging Chain 1 | . . 1 . . Shots Hit Robots 56 | . . 46 2 8 Core Hits 37 | . . 21 12 4 Critical Kills . | . . . . . Critical Parts Destroyed . | . . . . . Critical Strikes . | . . . . . Melee Attacks . | . . . . . Impact . | . . . . . Slashing . | . . . . . Piercing . | . . . . . Sneak Attacks . | . . . . . Combat Hostiles . | . . . . . Follow-up Attacks . | . . . . . Damage Inflicted 1144 | . . 519 490 135 Guns 602 | . . 519 . 83 Cannons . | . . . . . Explosions 542 | . . . 490 52 Melee . | . . . . . Ramming . | . . . . . Kinetic 378 | . . 369 . 9 Thermal 224 | . . 150 . 74 Explosive 542 | . . . 490 52 Electromagnetic . | . . . . . Impact . | . . . . . Slashing . | . . . . . Piercing . | . . . . . Highest Corruption . | . . . . . Average Corruption . | . . . . . Corruption Purged . | . . . . . Corruption Blocked . | . . . . . Overload Shots . | . . . . . Overflow Damage 39 | . . . 7 32 Projectiles . | . . . . . Explosions 39 | . . . 7 32 Melee . | . . . . . Knockbacks . | . . . . . Impact . | . . . . . Kinetic . | . . . . . Secondary . | . . . . . Self-Inflicted Damage 47 | . . . . 47 Shots 1 | . . . . 1 Rammed . | . . . . . Targets Rammed . | . . . . . Kicked . | . . . . . Crushed . | . . . . . Highest Temperature 198 | . . 198 . 16 Average Temperature 68 | . . 83 . 6 Received Heat Transfer 378 | . . 333 . 45 Siege Activations . | . . . . . Martial Activations . | . . . . . Shielding Activations . | . . . . . Robots Disrupted . | . . . . . Combat Hostiles . | . . . . . Robots Corrupted . | . . . . . Combat Hostiles . | . . . . . Parts Fried . | . . . . . Impact Corruptions . | . . . . . Robots Melted . | . . . . . Combat Hostiles . | . . . . . Parts Melted . | . . . . . Heat Transferred 535 | . . 349 . 186 Parts Sabotaged . | . . . . . Parts Stolen . | . . . . . Parts Stripped . | . . . . . Power Chain Reactions . | . . . . . Alert | -11 -10 -10 -10 -9 ------- Run | Yrd Mat Min Exi Min Maximum Alert Level . | . . . . . Low Security (%) 100 | 100 100 100 . 100 Level 1 . | . . . . . Level 2 . | . . . . . Level 3 . | . . . . . Level 4 . | . . . . . Level 5 . | . . . . . High Security . | . . . . . Max Security . | . . . . . Peak Influence 75 | . . 75 . 63 Initial . | . . . . . Average 17 | . . 20 . 18 Influence Increases 362 | . . 235 . 127 Destroy 0b10 Robot/C 260 | . . 180 . 80 Destroy Leader 50 | . . 40 . 10 Allied During Kill 3 | . . . . 3 Destroy Structure 4 | . . . . 4 Lose Combat Pursuer 45 | . . 15 . 30 Influence Decreases 325 | . . 235 . 90 Time Decay 245 | . . 215 . 30 Lost Part 60 | . . 20 . 40 Lost Ally 20 | . . . . 20 Squads Dispatched . | . . . . . Investigation . | . . . . . Extermination . | . . . . . Reinforcement . | . . . . . Assault . | . . . . . Garrison . | . . . . . Intercept . | . . . . . Searches Triggered . | . . . . . Construction Impeded . | . . . . . Haulers Reinforced . | . . . . . Active Scanning Responses . | . . . . . Cargo Convoy Interrupts . | . . . . . Stealth | -11 -10 -10 -10 -9 --------- Run | Yrd Mat Min Exi Min Distress Signals . | . . . . . Communications Jammed . | . . . . . Distress Signals . | . . . . . Times Spotted 27 | . . 15 6 6 Peak Tracking Total 18 | . . 18 9 4 Tactical Retreats 3 | . . 2 . 1 Traps | -11 -10 -10 -10 -9 ------- Run | Yrd Mat Min Exi Min Traps Triggered . | . . . . . Indirectly . | . . . . . Trap Hack Attempts . | . . . . . Triggered . | . . . . . Disarmed . | . . . . . Reprogrammed . | . . . . . Reused . | . . . . . Traps Extracted . | . . . . . Installed . | . . . . . Triggered . | . . . . . Machines | -11 -10 -10 -10 -9 ---------- Run | Yrd Mat Min Exi Min Machines Disabled 7 | . . . 7 . Max in Single Turn 3 | . . . 3 . Machines Repaired . | . . . . . Machines Dismantled . | . . . . . Machines Sabotaged . | . . . . . Overloaded Fab Kills . | . . . . . Hacking | -11 -10 -10 -10 -9 --------- Run | Yrd Mat Min Exi Min Machines Accessed 2 | . . 1 1 . Terminals . | . . . . . Fabricators . | . . . . . Repair Stations . | . . . . . Recycling Units . | . . . . . Scanalyzers . | . . . . . Garrison Access . | . . . . . Total Hacks 2 | . . 1 1 . Successful 2 | . . 1 1 . Failed . | . . . . . Catastrophic . | . . . . . Database Lockouts . | . . . . . Manual 1 | . . . 1 . Terminals . | . . . . . Fabricators . | . . . . . Repair Stations . | . . . . . Recycling Units . | . . . . . Scanalyzers . | . . . . . Garrison Access . | . . . . . Terminal Hacks 2 | . . 1 1 . Open Door 1 | . . 1 . . Proto ID Catalog 1 | . . . 1 . Fabricator Hacks . | . . . . . Repair Station Hacks . | . . . . . Recycling Unit Hacks . | . . . . . Scanalyzer . | . . . . . Garrison Access Hacks . | . . . . . Unauthorized Hacks . | . . . . . Terminals . | . . . . . Fabricators . | . . . . . Repair Stations . | . . . . . Recycling Units . | . . . . . Scanalyzers . | . . . . . Garrison Access . | . . . . . Data Cores Recovered . | . . . . . Used . | . . . . . Hacking Detections . | . . . . . Full Trace Events . | . . . . . Feedback Events . | . . . . . Feedback Blocked . | . . . . . Robot Schematics Acquired . | . . . . . Robots Built . | . . . . . Authchips . | . . . . . Time . | . . . . . Total Robot Build Rating . | . . . . . Part Schematics Acquired . | . . . . . Parts Built . | . . . . . Authchips . | . . . . . Time . | . . . . . Total Part Build Rating . | . . . . . Part Studies Acquired . | . . . . . Parts Repaired . | . . . . . Time . | . . . . . Parts Recycled . | . . . . . Recycled Matter . | . . . . . Retrieved Matter . | . . . . . Retrieved Components . | . . . . . Parts Scanalyzed . | . . . . . Part Schematics Acquired . | . . . . . Parts Damaged . | . . . . . Bothacking | -11 -10 -10 -10 -9 ------------ Run | Yrd Mat Min Exi Min Used RIF Installer . | . . . . . Robots Hacked . | . . . . . Non-combat . | . . . . . Combat . | . . . . . Robot Hacks Applied . | . . . . . Relay Couplers Released . | . . . . . Fabnet Peak Effective % . | . . . . . Robots Rewired . | . . . . . Allies Hacked . | . . . . . Hacks Repelled . | . . . . . Allies | -11 -10 -10 -10 -9 -------- Run | Yrd Mat Min Exi Min Total Allies 1 | . . . . 1 Largest Group 1 | . . . . 1 Highest-Rated Group 31 | . . . . 31 Highest-Rated Ally 31 | . . . . 31 Total Orders . | . . . . . Ally Attacks 7 | . . . . 7 Total Damage 42 | . . . . 42 Kills 1 | . . . . 1 Allies Corrupted . | . . . . . Allies Melted . | . . . . . Intel | -11 -10 -10 -10 -9 ------- Run | Yrd Mat Min Exi Min Active Infowar (turns) . | . . . . . Robot Analysis Total . | . . . . . Derelict Logs Recovered 1 | . . 1 . . Drone Launches . | . . . . . Drone Recoveries . | . . . . . Exploration | -11 -10 -10 -10 -9 ------------- Run | Yrd Mat Min Exi Min Turns Passed 1502 | 82 87 704 493 136 Spaces Moved 689 | 53 54 296 233 53 Core 461 | 13 . 162 233 53 Treads 228 | 40 54 134 . . Legs . | . . . . . Wheels . | . . . . . Hover . | . . . . . Flight . | . . . . . Fastest Speed 50 | 50 160 150 200 200 Average Speed 188 | 133 160 186 206 202 Slowest Speed 250 | 160 160 250 250 250 Overloaded Moves . | . . . . . Propulsion Burnouts . | . . . . . Robots Hopped . | . . . . . Potential Cave-ins . | . . . . . Cave-ins Triggered . | . . . . . Exploration Rate (%) 31 | 4 15 56 60 22 Regions Visited 4 Branch Regions 3 Pre-discovered Areas . | . . . . . Known Exits Taken . | . . . . . Unknown Exits Taken 4 | 1 1 1 1 . Scrap Searched 1 | . . 1 . . Spaces Dug . | . . . . . Terrain Destroyed 39 | . . . 35 4 Melee . | . . . . . Projectile . | . . . . . AOE 39 | . . . 35 4 Terrain Rammed . | . . . . . Walls Destroyed . | . . . . . Machines Disabled . | . . . . . Actions | -11 -10 -10 -10 -9 --------- Run | Yrd Mat Min Exi Min Total 813 | 65 55 383 241 69 Wait 31 | . . 25 . 6 Move 685 | 52 53 295 232 53 Hop . | . . . . . Pick Up 15 | 6 1 7 1 . Fast Attach 1 | . . 1 . . Attach 11 | 4 1 4 . 2 Detach 1 | . . 1 . . Swap 3 | . . 1 1 1 Drop 4 | 2 . 1 1 . Fire 62 | 1 . 48 6 7 Melee . | . . . . . Ram . | . . . . . Kick . | . . . . . Crush . | . . . . . Escape Stasis . | . . . . . Rewire . | . . . . . Trap . | . . . . . Miscellaneous . | . . . . . Route ------- -11/Scrapyard -10/Materials -10/Mines (discovered 2 exits: [*Mat] / *Exi) -10/Exiles -9/Mines History --------- Turn | Location | Event 3 | -11/Scrapyard | Discovered new exit (range 16) 83 | -11/Scrapyard | Entered Materials 145 | -10/Materials | Discovered new exit (range 15) 170 | -10/Materials | Entered Mines 171 | -10/Mines | Assembled infested the area 207 | -10/Mines | Met a Derelict bent on vengeance 242 | -10/Mines | Discovered new exit (range 11) 308 | -10/Mines | Build established: Mutant 465 | -10/Mines | Received a Rocket Launcher from a helpful Derelict 486 | -10/Mines | Core integrity fell below 50% 537 | -10/Mines | Lost 3 parts (2n1w) 598 | -10/Mines | Found the Drone Emporium 622 | -10/Mines | Found Prototype Device 623 | -10/Mines | Identified Decoy Drone Bay 746 | -10/Mines | Learned Materials stockpile data 840 | -10/Mines | Deemed a non-threat by the Exiles lab entrance 840 | -10/Mines | Discovered new exit (range 5) 874 | -10/Mines | Entered Exiles 924 | -10/Exiles | Met 8R-AWN 958 | -10/Exiles | Met EX-HEX 1020 | -10/Exiles | Met EX-BIN 1042 | -10/Exiles | Aligned with FarCom system 1044 | -10/Exiles | Given EX-Vault access code 1090 | -10/Exiles | Opened EX-Vault 1103 | -10/Exiles | Found 0b10 Alert Chip 1146 | -10/Exiles | Warned to stay clear of 0b10 Research branches 1210 | -10/Exiles | Met EX-DEC 1286 | -10/Exiles | Attacked by the Exiles 1327 | -10/Exiles | Discovered new exit (range 12) 1346 | -10/Exiles | Destroyed 7 combat bots 1367 | -10/Exiles | Left Exiles lab with 0b10 Alert Chip 1367 | -10/Exiles | Entered Mines 1370 | -9/Mines | Received a Mining Laser from a helpful Derelict 1479 | -9/Mines | Core integrity fell below 20% 1503 | -9/Mines | Destroyed by Y-45 Defender with Beam Rifle Last Messages --------------- you doing alone down here?" 85-V42(g): "And why aren't you carrying a mining laser?! Certainly you don't want THEM to uncover you when the ceiling comes crashing down? Here, take my spare." 85-V42(g): "You're apparently new around these parts, I'll cover you." 85-V42(g): "Mining lasers are a lot more useful than you might think..." S-10 Pest destroyed. Acquired 14 matter. S-10 Pest destroyed. Sml. Laser destroyed. Particle Gun destroyed. K-01 Serf collects debris. Ion Engine destroyed. Y-45 Defender destroyed. Com. Matter Pod destroyed. Destroyed Com. Matter Pod. R-06 Scavenger collects Lgt. Assault Rifle. Map ----- +----------------------------------------------------+ | ???????????????????????????# #????????? | | ???????????????????????????## #????????? | | ????????????????????????????## #????????? | | ?????????????????????????????## #????????? | | ??????????????????????????????# #????????? | | ??????????????????????????????## ##????????? | | ???????????????????????????????# ##?????????? | | ???????????????????????????????# #??????????? | | ????????????????????????######## #??????????? | | ????????????????????????# #??????????? | | ????????????????????????# ########??????????? | | ????????????????????????# #?????????????????? | | ??????????????????????### #?????????????????? | | ??????????????????????# #?????????????????? | | ??????????????????????#=###?????????????????? | | ??????????????????????#%#???????????????????? | | ??????????????????????#=#?????? ???????????? | | ??????????????????????#r#?????? ???????????? | | ????????????????????###r###??? ????????????? | | ?????????????# ### #??? ????????????? | | ????????????# #?? ?????????????? | | ????????????## ## #?? ?????????????? | | ?????????????## ### #?? #?????????????? | | ??????????????# #?# ## #?????????????? | | ??????????????# ###?## # #?????????????? | | ??????????????# ????## @ #?????????????? | | ??????????????# #### % #?????????????? | | ??????????????# Y ##????????????? | | ??????????????###### ####?????????? | | ???????????????????# #??????? | | ???????????????????## k #??????? | | ????????????????????## ### #??????? | | ?????????????????????## ##??????????? | | ??????????????????????## ###???????????? | | ???????????????????????# ##?????????????? | | ??????????????????????? ##??????????????? | | ??????????????????????? #???????????????? | | ?????????????????????? #???????????????? | | ?????????????????????? k???????????????? | | ????????????????????? ???????????????? | | ????????????????????? t ##???????????????? | | ???????????????????? ### ?????????????????? | | ???????????????????? #??? ?????????????????? | | ????????????????????????? ?????????????????? | | ????????????????????????? ?????????????????? | | ????????????????????????????????????????????? | | ????????????????????????????????????????????? | | ????????????????????????????????????????????? | | ????????????????????????????????????????????? | | ????????????????????????????????????????????? | +----------------------------------------------------+ Best States ------------- Heat Dissipation 39 Energy Generation 10 Energy Capacity 250 Matter Stores 440 Matter Capacity 450 Sight Range 16 Terrain Scan Density 10 Evasion (%) 50 Recoil Reduction 2 Item Schematics ----------------- None Robot Schematics ------------------ None Fabricated ------------ Nothing Repaired ---------- Nothing Studied --------- None Alien Tech Used ----------------- None Achievements -------------- None Challenges ------------ None Game ------ Seed LobotomyRecyclingRouter Manual? 0 Play Time 00:05:42 Cumulative 364.2 hours Start 2026.07.06 @ 20:55:38 End 2026.07.06 @ 21:00:45 Sessions 1 Manual Loads 0 Difficulty Rogue Special Mode None Game No. 900 Rogue 898 Adventurer 2 Explorer 0 Win Type - Total 1 Types 1/0/0/0/0/0/0/0/0/0 Lore% 51 Gallery% 67 Achievement% 53 Wizard Run 0 Options --------- Layout 2 ASCII 0 Keyboard 0 Movement Mouse Keybinds 0 Fullscreen 1 Font 24/Smallcaps Map View 50x44 Zoom Use 0% Tactical HUD 0 Map Filters NONE Filters NONE Steam 1 RUN: 57020c94-a9bd-46dc-8bc8-9b232368148d